[Event "CCT Julius Baer-D1 2024"]
[Site "Online"]
[Date "2024.09.27"]
[Round "1.2"]
[White "LevonAronian"]
[Black "Vachier-Lagrave, Maxime"]
[Result "1/2-1/2"]
[ECO "B90"]
[WhiteElo "2784"]
[BlackElo "2884"]
[Annotator "TA"]
[PlyCount "109"]
[EventDate "2024.09.25"]
[EventType "swiss"]
[EventCountry "NET"]
[SourceTitle "playchess.com"]
[Source "ChessBase"]
[SourceQuality "1"]
[TimeControl "600+2"]

{[%evp 12,109,45,39,37,0,15,0,0,-7,0,-20,0,-18,0,-16,10,0,0,0,37,-3,48,0,13,13,0,-1,13,0,21,0,0,2,58,68,41,41,61,49,75,48,39,35,47,46,42,41,68,88,146,45,44,22,13,0,97,78,107,83,80,77,84,48,60,0,0,0,0,0,0,0,0,0,0,0,0,0,0,0,0,0,0,0,0,0,0,0,0,0,0,0,0,0,0,0,0,0,3,0]} 1. e4 {[%emt 0:00:02]} c5 {[%emt 0:00:03]} 2. Nf3 {[%emt 0:00:02]} d6 {[%emt 0:00:01]} 3. d4 {[%emt 0:00:01]} cxd4 {[%emt 0:00:00]} 4. Nxd4 {[%emt 0:00:00]} Nf6 {[%emt 0:00:00]} 5. Nc3 {[%emt 0:00:01]} a6 {[%emt 0:00:01]} 6. Bd3 {[%emt 0:00:01]} e5 {[%emt 0:00:04] 6...g6 wint aan populariteit.} 7. Nde2 $1 {[%emt 0:00:01]} Nc6 {[%emt 0:00:04] B90: Siciliaans Najdorf: Ongebruikelijke Wit 6e zetten, 6 Le3 Pg4 en 6 Le3 e5.} 8. Bg5 {[%emt 0:00:51]} Be7 {[%emt 0:00:15][%cal Of6e4] OK} 9. Bxf6 {[%emt 0:00:02]} Bxf6 {[%emt 0:00:00]} 10. Bc4 {[%emt 0:00:08] OK} Be6 {[%emt 0:00:11] OK} 11. Bb3 $146 {[%emt 0:00:01] OK} ({Predecessor:} 11. Nd5 Bg5 12. O-O Na5 {½-½ Nevednichy,V (2563)-Hulak,K (2536) SLO-chT Murska Sobota 2006 (7)}) 11... O-O {[%emt 0:00:14] OK} 12. O-O {[%emt 0:00:03] OK} Rc8 {[%emt 0:00:23] OK} 13. Nd5 {[%emt 0:00:38] OK} Bg5 {[%emt 0:00:02] OK} 14. Qd3 {[%emt 0:00:19] OK} Kh8 {[%emt 0:00:05]} 15. Rad1 {[%emt 0:00:15]} Na5 {[%emt 0:00:17] OK} 16. Nec3 {[%emt 0:00:35] Onnauwkeurig} g6 {[%emt 0:00:52] Fout (0.5)} ({Zwart zou moeten spelen} 16... b5 $11) 17. f4 {[%emt 0:00:44] Onnauwkeurig} exf4 {[%emt 0:00:34] OK} 18. Qd4+ {[%emt 0:00:01] OK} Kg8 {[%emt 0:00:04] Beste (Gemakkelijk)} 19. Nxf4 {[%emt 0:00:01] Fantastisch paardenconcours. OK} Nxb3 {[%emt 0:00:11] OK} 20. cxb3 {[%emt 0:00:34]} Bf6 {[%emt 0:00:33]} 21. Qxd6 {[%emt 0:00:09]} Qxd6 {[%emt 0:00:00]} 22. Rxd6 {[%emt 0:00:02][%cal Rf4e6]} Bxc3 {[%emt 0:00:01] Fout (0.6)} (22... Be5 $1 $11 23. Rd2 Bxc3 24. bxc3 Rxc3 25. Nxe6 fxe6) 23. bxc3 $14 {[%emt 0:00:23]} Rxc3 {[%emt 0:00:00]} 24. Nxe6 {[%emt 0:00:16] OK} fxe6 {[%emt 0:00:02]} 25. Rxe6 $11 {[%emt 0:00:07][%mdl 4096] Eindspel. KRR-KRR} Rd8 {[%emt 0:00:29] Onnauwkeurig} 26. h4 {[%emt 0:01:35] Onnauwkeurig} Rc2 {[%emt 0:00:03] Beste} 27. Rf3 {[%emt 0:00:29]} Rxa2 {[%emt 0:00:15] OK} 28. Re7 {[%emt 0:00:22][%cal Of3c3] OK} Rdd2 {[%emt 0:01:30][%cal Rd2g2] OK} 29. Rg3 {[%emt 0:00:06][%cal Oe4e5] OK} Re2 {[%emt 0:01:12] Onnauwkeurig} 30. e5 {[%emt 0:00:36][%cal Oe5e6]} b5 {[%emt 0:00:56] [#] Fout (0.6)} (30... b6 $142) 31. h5 {[%emt 0:00:16] Fout (1.0)} ({Beter is} 31. e6 $1 $16) 31... Kf8 $14 {[%emt 0:00:01][%csl LRe7,LRh5] Beste (Gemakkelijk)} 32. Rxh7 {[%emt 0:00:02] Beste} gxh5 {[%emt 0:00:01] OK} 33. Rxh5 {[%emt 0:00:11]} a5 {[%emt 0:00:23] [#] Blijft stabiel. Fout (1.0)} (33... Kf7 $11) 34. Rg6 $1 $16 {[%emt 0:00:02] Sterk} Re1+ {[%emt 0:00:28]} 35. Kh2 {[%emt 0:00:02] Sterke dreiging met Rf6+.} Rae2 {[%emt 0:00:00][%cal Re2e5] OK} 36. Rf6+ {[%emt 0:00:16] OK} Kg7 {[%emt 0:00:04][%cal Re2e5]} 37. Rg5+ {[%emt 0:00:02] OK} Kh7 {[%emt 0:00:01][%cal Re2e5] Beste (Gemakkelijk)} 38. Rf4 {[%emt 0:01:24] Fout (0.6)} ({Wit zou moeten proberen} 38. Rh5+ $14 Kg7 39. Rg5+ Kh7 40. e6) 38... Re4 $11 {[%emt 0:00:20] OK. De stelling is in evenwicht.} 39. Rff5 {[%emt 0:00:09]} a4 {[%emt 0:00:16] OK} 40. bxa4 {[%emt 0:00:01] OK} bxa4 {[%emt 0:00:00]} 41. Rf7+ {[%emt 0:00:17] OK} Kh6 {[%emt 0:00:02] OK} 42. Rg8 {[%emt 0:00:04]} Rxe5 {[%emt 0:00:09] OK} 43. Ra7 {[%emt 0:00:10] OK} Rh5+ {[%emt 0:00:04]} 44. Kg3 {[%emt 0:00:01] Dreigt te winnen met Rh8+.} Rg5+ {[%emt 0:00:02] OK} 45. Rxg5 {[%emt 0:00:01] OK} Kxg5 {[%emt 0:00:00] KR-KR} 46. Ra5+ {[%emt 0:00:01]} Kg6 {[%emt 0:00:01] OK} 47. Rxa4 {[%emt 0:00:01] OK} Rb1 {[%emt 0:00:02]} 48. Kf4 {[%emt 0:00:01]} Rf1+ {[%emt 0:00:03]} 49. Kg4 {[%emt 0:00:01]} Rf6 {[%emt 0:00:01] OK} 50. Ra5 {[%emt 0:00:02] OK} Rb6 {[%emt 0:00:01] OK} 51. Rg5+ {[%emt 0:00:01]} Kh7 {[%emt 0:00:08] OK} 52. Re5 {[%emt 0:00:08]} Kg6 {[%emt 0:00:01]} 53. Rg5+ {[%emt 0:00:00]} Kh7 {[%emt 0:00:01] OK} 54. Re5 {[%emt 0:00:04]} Kg6 {[%emt 0:00:00]} 55. Rg5+ {[%emt 0:00:01] Blunder waarde: Wit=0.09 (foutloos) /Zwart=0.12 (erg precies) .  Fout:        	Wit=2      	Zwart=4      Onnauwkeurig:    	Wit=3      	Zwart=2      OK:         	Wit=18     	Zwart=22     Beste:        	Wit=1      	Zwart=4      Sterk:        	Wit=1      	---} 1/2-1/2

[Event "CCT Julius Baer-D1 2024"]
[Site "Online"]
[Date "2024.09.27"]
[Round "1.2"]
[White "Erigaisi, Arjun"]
[Black "Grischuk, Alexander"]
[Result "1-0"]
[ECO "D35"]
[WhiteElo "2725"]
[BlackElo "2713"]
[Annotator "TA"]
[PlyCount "83"]
[EventDate "2024.09.25"]
[EventType "swiss"]
[EventCountry "NET"]
[SourceTitle "playchess.com"]
[Source "ChessBase"]
[SourceQuality "1"]
[TimeControl "600+2"]

{[%evp 14,83,0,0,0,4,6,4,8,-21,-16,-37,-36,-37,-25,-25,-32,-39,-27,-24,-37,-16,-27,-22,-33,-17,-22,-34,-10,-18,-9,-14,0,0,0,0,0,14,12,0,56,0,0,0,0,0,0,0,32,0,0,-12,102,62,45,41,306,332,327,344,1882,1847,5916,840,781,360,691,237,243,270,210,243]} 1. d4 {[%emt 0:00:03]} d5 {[%emt 0:00:04]} 2. c4 {[%emt 0:00:02]} e6 {[%emt 0:00:01]} 3. Nc3 {[%emt 0:00:08]} Be7 {[%emt 0:00:01]} 4. Nf3 {[%emt 0:00:05]} Nf6 {[%emt 0:00:02]} 5. cxd5 {[%emt 0:00:01]} exd5 {[%emt 0:00:01]} 6. Bf4 {[%emt 0:00:01]} c6 {[%emt 0:00:06]} 7. h3 {[%emt 0:00:05]} Bf5 {[%emt 0:00:52]} 8. e3 {[%emt 0:00:03]} Qb6 {[%emt 0:00:22]} 9. Bd3 {[%emt 0:00:07]} Bxd3 {[%emt 0:00:02]} 10. Qxd3 {[%emt 0:00:00]} Nbd7 {[%emt 0:00:36] Die Stellung ist ausgeglichen.} 11. O-O-O {[%emt 0:00:03]} O-O {[%emt 0:00:16]} 12. Nh4 {[%emt 0:00:01]} g6 {[%emt 0:01:18][%cal Of6e4]} 13. Nf3 {[%emt 0:00:02]} Rfe8 {[%emt 0:00:21]} 14. h4 {[%emt 0:00:11][%cal Oh4h5]} h5 {[%emt 0:00:54]} 15. Ng5 {[%emt 0:00:42]} Bb4 {[%emt 0:00:19]} 16. f3 {[%emt 0:00:02]} Qa5 {[%emt 0:00:06]} 17. Kb1 $1 {[%emt 0:00:41]} Bxc3 {[%emt 0:00:04]} 18. Qxc3 {[%emt 0:00:14]} Qxc3 {[%emt 0:00:02]} 19. bxc3 {[%emt 0:00:00]} Nb6 {[%emt 0:01:02]} 20. Rhe1 {[%emt 0:00:03]} Nc4 {[%emt 0:00:03]} 21. e4 {[%emt 0:00:01]} dxe4 {[%emt 0:00:19]} 22. fxe4 {[%emt 0:00:00]} Rad8 {[%emt 0:00:03]} 23. Kc2 {[%emt 0:00:07]} Ng4 {[%emt 0:00:11]} 24. Re2 {[%emt 0:00:04]} f6 {[%emt 0:00:12]} 25. Nf3 {[%emt 0:00:01]} Rd7 {[%emt 0:00:17]} 26. a4 {[%emt 0:00:09]} a5 {[%emt 0:00:26]} (26... b5 $11) 27. Kb3 {[%emt 0:02:21]} (27. Nd2 $14 b5 28. axb5 cxb5 29. Nxc4 bxc4 30. d5) 27... b5 $11 {[%emt 0:00:05]} 28. d5 {[%emt 0:00:00]} Nb6 {[%emt 0:02:01][%csl LRa4,LRd5] Hervorragende Reitkunst.} 29. axb5 {[%emt 0:00:02]} cxb5 {[%emt 0:00:01][%cal Ob6d5]} 30. d6 {[%emt 0:00:01]} Rc8 {[%emt 0:00:37]} 31. Nd4 {[%emt 0:00:16]} Rc5 {[%emt 0:00:01]} 32. Ra2 {[%emt 0:00:09]} Ne5 {[%emt 0:00:08]} (32... g5 $11 33. Bg3 gxh4 34. Bxh4 Nc4) 33. Rxa5 {[%emt 0:00:22] Weiß steht aktiver.} Rxd6 {[%emt 0:00:01]} 34. Rda1 {[%emt 0:00:00]} (34. Rxb5 $2 Rxb5+ 35. Kc2 Ra5 36. Bxe5 fxe5 $19) 34... Nbc4 $2 {[%emt 0:00:11][%mdl 8192] [#] Das kostet Schwarz die Partie.} (34... Rd7 $14) 35. Ra8+ $1 $18 {[%emt 0:00:18]} ({Und nicht} 35. Rxb5 Nd2+ 36. Kc2 (36. Bxd2 Rxb5+ 37. Nxb5 Rxd2 $11) 36... Nxe4 37. Rxc5 Nxc5 $11) 35... Kf7 {[%emt 0:00:02]} 36. Rh8 {[%emt 0:00:01]} Rd7 {[%emt 0:00:02] Wehrt Ra7 ab} (36... Nb6 37. Ra6 Ke7 (37... Rxc3+ $2 38. Kxc3 Na4+ 39. Rxa4 $18) 38. Rh7+ Ke8) 37. Raa8 {[%emt 0:00:03][%cal Rh8h7]} Ke7 {[%emt 0:00:03]} 38. Rh7+ {[%emt 0:00:18]} (38. Rhe8+ $142 Kd6 39. Ra6+ Kc7 40. Ne6+ (40. Rxf6 Kb7 $18) 40... Kb7 41. Nxc5+ Kc7 42. Ra7+ Kb6 43. Rxd7 (43. Nxd7+ Kxa7 44. Bxe5 fxe5 $18) 43... Na5+ 44. Kc2 Nxd7 45. Nxd7+ Ka7 46. Nxf6) 38... Nf7 {[%emt 0:00:03]} 39. Ra6 {[%emt 0:00:00]} (39. Bh6 $142 {[%csl Ga8][%cal Rh6f8]} Kd6 40. Bf8+ Ke5 41. Bxc5 Kxe4 42. Ba3 (42. Nxb5 Nce5 $18)) 39... Nce5 $2 {[%emt 0:00:03]} (39... Rc8 40. Rg7 (40. Nxb5 Kf8 $16) 40... Kf8 41. Rxg6 Nce5 42. Rgxf6 Ng4) 40. Re6+ $2 {[%emt 0:00:03]} (40. Bxe5 fxe5 41. Nc6+ Rxc6 42. Rxc6) 40... Kf8 {[%emt 0:00:01] [#] Und jetzt ...Kg8 wäre schön.} 41. Rxf6 {[%emt 0:00:26]} Kg8 {[%emt 0:00:02] Lässt Ne6 nicht zu} 42. Ne6 $1 {[%emt 0:00:01] Gewichteter Fehlerwert: Weiß=0.45/Schwarz=0.49.  Verlustzug:     	---       	Schwarz=1     Fehler:       	Weiß=1     	Schwarz=3     Ungenau:       	Weiß=3     	Schwarz=2     OK:         	Weiß=11    	Schwarz=11    Bester:       	Weiß=2     	Schwarz=5     Stark:        	Weiß=3     	---} 1-0